Cogmind - Beta 10.2 @@@ ROGUE MODE // 2021.09.19 @ 14:33:22 Player: Jezoensis Result: Destroyed by as-90417 with Assembled Blade Performance ------------- Evolutions (0) 0 Regions Visited (2) 400 Robots Destroyed (29) 145 Value Destroyed (345) 345 Prototype IDs (0) 0 Alien Tech Used (0) 0 Bonus (0) 0 TOTAL SCORE: 890 Bonus ------- None Cogmind --------- Core Integrity 0/250 Matter 288/300 Energy 114/125 System Corruption 0% Temperature Cool (27) Movement Treading (160) Location -10/Mines Parts ------- > --- POWER (1) -------- Light Ion Engine > --- PROPULSION (2) --- Light Treads Light Treads > --- UTILITY (2) ------ Large Storage Unit Improved Terrain Scanner > --- WEAPON (2) ------- Medium Laser Assault Rifle > --- INVENTORY (10) --- Light Treads Light Treads Large Storage Unit Structural Scanner Terrain Scan Processor ECM Suite Grenade Launcher Mining Laser Peak State ------------ > --- POWER ------------ Light Ion Engine > --- PROPULSION ------- Light Treads Light Treads > --- UTILITY ---------- Small Storage Unit Improved Terrain Scanner > --- WEAPON ----------- Particle Gun Assault Rifle > --- INVENTORY -------- Ion Engine Light Assault Rifle Mining Laser [Rating: 9] Favorites ----------- Power Light Ion Engine Engine Light Ion Engine Propulsion Light Treads Treads Light Treads Utility Improved Terrain Scanner Device Improved Terrain Scanner Storage Large Storage Unit Weapon Assault Rifle Energy Gun Medium Laser Ballistic Gun Assault Rifle Special Weapon Mining Laser Build | -11 -10 -10 ------- Run | Scr Mat Min Slots Evolved . | . . . Power . | . . . Propulsion . | . . . Utility . | . . . Weapon . | . . . Parts Attached 26 | 7 14 5 Power 3 | 1 1 1 Engine 3 | 1 1 1 Core . | . . . Reactor . | . . . Propulsion 3 | 2 . 1 Treads 3 | 2 . 1 Leg . | . . . Wheel . | . . . Hover . | . . . Flight . | . . . Utility 4 | 2 2 . Device 1 | 1 . . Storage 3 | 1 2 . Processor . | . . . Hackware . | . . . Protection . | . . . Artifact . | . . . Weapon 16 | 2 11 3 Energy Gun 6 | . 4 2 Energy Cannon . | . . . Ballistic Gun 7 | 2 4 1 Ballistic Cannon . | . . . Launcher . | . . . Special Weapon 3 | . 3 . Impact Weapon . | . . . Slashing Weapon . | . . . Piercing Weapon . | . . . Special Melee Weapon . | . . . Unidentified Prototypes . | . . . Parts Lost 6 | . 1 5 Power 1 | . . 1 Propulsion 1 | . . 1 Utility . | . . . Weapon 4 | . 1 3 Highest Loss Streak 5 | . 1 5 Average Slot Usage (%) 98 | . 99 92 Engine 12 | . 14 8 Treads 27 | . 28 26 Device 14 | . 14 14 Storage 14 | . 14 14 Energy Gun 6 | . 4 14 Ballistic Gun 19 | . 20 12 Special Weapon 2 | . 2 . Naked Turns . | . . . Heaviest Build 26 | 11 26 26 Greatest Support 40 | 40 40 40 Greatest Overweight (x) 1 | . . 1 Average Overweight (x) . | . . . Largest Inventory Capacity 10 | 6 10 10 Average Capacity 8 | 5 7 10 Most Carried 10 | 3 10 10 Average Carried 6 | 2 5 8 Final Capacity 10 | 6 10 10 Final Carried 10 | 3 10 8 Class Distribution -------------------- 100% | Mutant Dominant Class ---------------- Mutant | -10/Materials Mutant | -10/Mines Resources | -11 -10 -10 ----------- Run | Scr Mat Min Matter Collected 765 | 303 376 86 Remotely . | . . . Salvage Created 752 | 205 400 147 Parts 69 | 16 33 20 Haulers Intercepted 2 | . 2 . Recyclers Shooed 4 | . 3 1 Parts Field Recycled . | . . . Retrieved Matter . | . . . Parts Self-Destructed . | . . . Prevented . | . . . Kills | -11 -10 -10 ------- Run | Scr Mat Min Combat Hostiles Destroyed 10 | . 9 1 Guns 10 | . 9 1 Classes Destroyed 10 | 2 7 1 Worker 4 | . 1 3 Builder 4 | . 1 3 Tunneler 5 | 5 . . Hauler 2 | . 2 . Recycler 1 | 1 . . Operator 1 | . 1 . Watcher 2 | . 2 . Swarmer 6 | . 6 . Grunt 3 | . 3 . Demolisher 1 | . . 1 Best Kill Streak 6 | 6 4 2 Combat Bots Only 4 | . 4 1 Max Kills in Single Turn 1 | 1 1 1 Gunslinging . | . . . Exploded . | . . . Melee . | . . . Uniques/NPCs Destroyed . | . . . Combat | -11 -10 -10 -------- Run | Scr Mat Min Damage Taken 1024 | . 463 561 Core 261 | . 108 153 Absorbed by Shields . | . . . Core Remaining (%) 100 | 100 . . Volleys Fired 111 | 12 73 26 Largest 2 | 2 2 2 Hottest 100 | 40 100 100 Shots Fired 205 | 24 131 50 Gun 193 | 24 119 50 Cannon . | . . . Launcher . | . . . Special 12 | . 12 . Kinetic 141 | 24 98 19 Thermal 64 | . 33 31 Explosive . | . . . Electromagnetic . | . . . Robot Hit Streak 12 | 7 12 8 Robot Miss Streak 4 | 3 4 3 Penetration Max . | . . . Secondary Targets 1 | . 1 . Max Gunslinging Chain 1 | . 1 . Shots Hit Robots 123 | 15 81 27 Core Hits 41 | 8 24 9 Critical Hits 1 | . 1 . Critical Kills . | . . . Critical Parts Destroyed 1 | . 1 . Melee Attacks . | . . . Impact . | . . . Slashing . | . . . Piercing . | . . . Sneak Attacks . | . . . Combat Hostiles . | . . . Follow-up Attacks . | . . . Damage Inflicted 1425 | 147 979 299 Guns 1401 | 147 955 299 Cannons . | . . . Explosions . | . . . Melee . | . . . Ramming . | . . . Kinetic 953 | 147 732 74 Thermal 472 | . 247 225 Explosive . | . . . Electromagnetic . | . . . Impact . | . . . Slashing . | . . . Piercing . | . . . Highest Corruption . | . . . Average Corruption . | . . . Corruption Purged . | . . . Overload Shots . | . . . Overflow Damage . | . . . Projectiles . | . . . Explosions . | . . . Melee . | . . . Knockbacks . | . . . Impact . | . . . Kinetic . | . . . Secondary . | . . . Self-Inflicted Damage . | . . . Shots . | . . . Rammed . | . . . Targets Rammed . | . . . Kicked . | . . . Crushed . | . . . Highest Temperature 318 | . 318 81 Average Temperature 53 | . 63 22 Received Heat Transfer 156 | . 156 . Effects 2 | . 2 . Interference 2 | . 2 . Siege Activations . | . . . Robots Corrupted . | . . . Combat Hostiles . | . . . Parts Fried . | . . . Impact Corruptions . | . . . Robots Melted . | . . . Combat Hostiles . | . . . Parts Melted . | . . . Heat Transferred 1234 | . 568 666 Parts Sabotaged . | . . . Parts Stolen . | . . . Parts Stripped . | . . . Power Chain Reactions . | . . . Missiles Intercepted . | . . . Alert | -11 -10 -10 ------- Run | Scr Mat Min Peak Influence 214 | 30 214 50 Initial 19 | . 19 15 Average 62 | 10 77 25 Maximum Alert Level 1 | . 1 . Low Security (%) 92 | 100 89 100 Level 1 7 | . 10 . Level 2 . | . . . Level 3 . | . . . Level 4 . | . . . Level 5 . | . . . High Security . | . . . Max Security . | . . . Squads Dispatched 2 | . 2 . Investigation 1 | . 1 . Extermination . | . . . Reinforcement 1 | . 1 . Assault . | . . . Garrison . | . . . Intercept . | . . . Construction Impeded . | . . . Haulers Reinforced . | . . . Stealth | -11 -10 -10 --------- Run | Scr Mat Min Distress Signals 2 | . . 2 Communications Jammed . | . . . Distress Signals . | . . . Times Spotted 30 | . 21 9 Peak Tracking Total 4 | . 4 4 Tactical Retreats 1 | . 1 . Traps | -11 -10 -10 ------- Run | Scr Mat Min Traps Triggered 1 | . 1 . Indirectly . | . . . Trap Hack Attempts . | . . . Triggered . | . . . Disarmed . | . . . Reprogrammed . | . . . Reused . | . . . Traps Extracted . | . . . Installed . | . . . Triggered . | . . . Machines | -11 -10 -10 ---------- Run | Scr Mat Min Machines Disabled . | . . . Max in Single Turn . | . . . Machines Sabotaged . | . . . Garrisons Compromised . | . . . Overloaded Fab Kills . | . . . Fab Network Shutdowns . | . . . Hacking | -11 -10 -10 --------- Run | Scr Mat Min Machines Accessed 9 | . 9 . Terminals 7 | . 7 . Fabricators . | . . . Repair Stations . | . . . Recycling Units 2 | . 2 . Scanalyzers . | . . . Garrison Access . | . . . Total Hacks 29 | . 29 . Successful 14 | . 14 . Failed 15 | . 15 . Catastrophic 1 | . 1 . Database Lockouts . | . . . Manual 27 | . 27 . Terminals 23 | . 23 . Fabricators . | . . . Repair Stations . | . . . Recycling Units 6 | . 6 . Scanalyzers . | . . . Garrison Access . | . . . Terminal Hacks 8 | . 8 . Part Schematic 2 | . 2 . Robot Analysis 4 | . 4 . Terminal Index 1 | . 1 . Locate Traps 1 | . 1 . Fabricator Hacks . | . . . Repair Station Hacks . | . . . Recycling Unit Hacks . | . . . Scanalyzer . | . . . Garrison Access Hacks . | . . . Unauthorized Hacks 6 | . 6 . Terminals 2 | . 2 . Botnet 2 | . 2 . Fabricators . | . . . Repair Stations . | . . . Recycling Units 4 | . 4 . Reject 1 | . 1 . Recyclers 2 | . 2 . Mask 1 | . 1 . Scanalyzers . | . . . Garrison Access . | . . . Data Cores Recovered . | . . . Used . | . . . Hacking Detections 9 | . 9 . Full Trace Events 1 | . 1 . Feedback Events . | . . . Feedback Blocked . | . . . Robot Schematics Acquired . | . . . Robots Built . | . . . Matter . | . . . Time . | . . . Total Robot Build Rating . | . . . Part Schematics Acquired 2 | . 2 . Parts Built . | . . . Matter . | . . . Time . | . . . Total Part Build Rating . | . . . Parts Repaired . | . . . Time . | . . . Parts Recycled . | . . . Recycled Matter . | . . . Retrieved Matter . | . . . Retrieved Components . | . . . Parts Scanalyzed . | . . . Part Schematics Acquired . | . . . Parts Damaged . | . . . Bothacking | -11 -10 -10 ------------ Run | Scr Mat Min Used RIF Installer . | . . . Robots Hacked . | . . . Non-combat . | . . . Combat . | . . . Robot Hacks Applied . | . . . Relay Couplers Released . | . . . Robots Rewired . | . . . Allies Hacked . | . . . Hacks Repelled . | . . . Allies | -11 -10 -10 -------- Run | Scr Mat Min Total Allies . | . . . Largest Group . | . . . Highest-Rated Group . | . . . Highest-Rated Ally . | . . . Total Orders . | . . . Ally Attacks . | . . . Total Damage . | . . . Kills . | . . . Allies Corrupted . | . . . Allies Melted . | . . . Intel | -11 -10 -10 ------- Run | Scr Mat Min Robot Analysis Total 4 | . 4 . Derelict Logs Recovered 1 | . . 1 Drone Launches . | . . . Drone Recoveries . | . . . Exploration | -11 -10 -10 ------------- Run | Scr Mat Min Turns Passed 1865 | 115 1384 366 Spaces Moved 928 | 45 705 178 Core 3 | 3 . . Treads 925 | 42 705 178 Legs . | . . . Wheels . | . . . Hover . | . . . Flight . | . . . Fastest Speed 50 | 50 160 160 Average Speed 159 | 152 160 160 Slowest Speed 180 | 160 160 180 Overloaded Moves . | . . . Propulsion Burnouts . | . . . Robots Hopped . | . . . Cave-ins Triggered . | . . . Exploration Rate (%) 42 | 3 96 29 Regions Visited 2 Branch Regions 1 Pre-discovered Areas . | . . . Known Exits Taken . | . . . Unknown Exits Taken 2 | 1 1 . Scrap Searched . | . . . Spaces Dug 11 | . 11 . Terrain Destroyed 11 | . 11 . Melee . | . . . Projectile 11 | . 11 . AOE . | . . . Terrain Rammed . | . . . Walls Destroyed . | . . . Machines Disabled . | . . . Actions | -11 -10 -10 --------- Run | Scr Mat Min Total 1088 | 67 810 211 Wait 2 | . 2 . Move 926 | 44 704 178 Hop . | . . . Pick Up 15 | 4 9 2 Fast Attach 11 | 6 4 1 Attach 7 | 1 2 4 Detach 2 | . 2 . Swap 8 | . 8 . Drop 6 | . 6 . Fire 111 | 12 73 26 Melee . | . . . Ram . | . . . Kick . | . . . Crush . | . . . Escape Stasis . | . . . Rewire . | . . . Trap . | . . . Miscellaneous . | . . . Route ------- -11/Scrapyard -10/Materials (discovered 4 exits: [*Mat x3] / [*Min]) -10/Mines (discovered 1 exit: [*Mat]) History --------- Turn | Location | Event 17 | -11/Scrapyard | Discovered new exit (range 16) 116 | -11/Scrapyard | Entered Materials 300 | -10/Materials | Discovered new exit (range 12) 310 | -10/Materials | Build established: Mutant 473 | -10/Materials | Discovered new exit (range 6) 541 | -10/Materials | Discovered new exit (range 9) 1188 | -10/Materials | Discovered new exit (range 15) 1500 | -10/Materials | Entered Mines 1516 | -10/Mines | Learned 8 Materials zone layouts 1573 | -10/Mines | Assembled infested the area 1625 | -10/Mines | Core integrity fell below 50% 1654 | -10/Mines | Core integrity fell below 20% 1684 | -10/Mines | Lost 5 parts (1p1n3w) 1823 | -10/Mines | Discovered new exit (range 16) 1866 | -10/Mines | Destroyed by as-90417 with Assembled Blade Last Messages --------------- 01665_ U-05 Engineer builds a Wall. 01666_ The unstable cave ceiling collapses. 01672_ U-05 Engineer destroyed. 01679_ The unstable cave ceiling collapses. 01680_ Acquired Structural Scanner. 01681_ Acquired 12 matter. 01684_ Acquired Terrain Scan Processor. 01688_ The unstable cave ceiling collapses. 01731_ K-01 Serf destroyed. 01765_ Extracted 18 matter. 01766_ K-01 Serf collects debris. 01770_ Acquired Lgt. Ion Engine. 01772_ K-01 Serf destroyed. 01776_ Acquired 13 matter. 01802_ U-05 Engineer destroyed. 01804_ K-01 Serf collects debris. 01823_ EXIT=FOUND 01824_ Acquired 6 matter. 01837_ U-05 Engineer destroyed. 01840_ Acquired 3 matter. Map ----- +----------------------------------------------------+ | ?????????#### #?# # #???? | | ???###??????# ##?####### # ##???? | | ??## ##??#??# ###??????###### # # ##????? | | ?## ##????# #????????##??#?#########?????? | | ?# ###??# #???#??????#??#??#?#####???? ? | | ?# ##?# ##????#?????????????#????????? | | ?# ### #?????????????#???##?????????? | | ?# ! ##??????????????#????????????? | | ?# % #######???#???#????????????????????? | | ?# ###??????#???????#???????????????????? | | ?# ##?#?????#????????????????????????????? | | ?# ####??????#?#??##????????????????????????? | | ## #???########?????#???????????????????????? | | ?# #???# #?#?????#?????????????????????? | | ## ##### """#?????????????????????????????? | | ?# """#????#????????????????????????? | | ?#### ## """#?#???????????#???????????????? | | ????# ## #?????#????#??????????????????? | | ????#!#########?????????????????????????????? | | ??#?#%#?#????????????##?????????????????????? | | #???# #???##??#?#???????????????????????????? | | ????#=#???#?#????????#??????????????????????? | | ???##%##??#??#??#??????#?#????#?????????????? | | ??#?#=################??#??#????????????????? | | ????# !|%= !!%*=#?#?#??????????????????? | | #???################@#??????????????????????? | | ?????????????????###a#??##??????#???????????? | | #??????????????????# #??????#???????????????? | | #?#???????????????? %#?????????? ???????????? | | ?#?????????#??????? ??????????????????????? | | ?#?????????#???????% ??????#???????????????? | | ?#?????????????????%! ?????#????????????????? | | ??????????????????< %???#??????????????????? | | ??????????##?????? ??????????????????????? | | ?#?????????#?? ??? % ??????????????????????? | | ??????????#???????# ?????????????????????? | | ????????????#?????###%=?????????????????????? | | ?????????????? ?##???# ?????????????????????? | | ????????#?????? ?????? ?????????????????????? | | ??????????????????????#?????????????????????? | | ????????????????????????????????????????????? | | ????????????????????????????????????????????? | | ????????????????????????????????????????????? | | ????????????????????????????????????????????? | | ????????????????????????????????????????????? | | ????????????????????????????????????????????? | | ????????????????????????????????????????????? | | ????????????????????????????????????????????? | | ????????????????????????????????????????????? | | ????????????????????????????????????????????? | +----------------------------------------------------+ Best States ------------- Heat Dissipation 25 Energy Generation 10 Energy Capacity 250 Matter Stores 300 Matter Capacity 300 Sight Range 16 Terrain Scan Range 16 Terrain Scan Density 10 Evasion (%) 40 Recoil Reduction 2 Item Schematics ----------------- ECM Suite | -10/Materials | Hacked Lrg. Storage Unit | -10/Materials | Hacked Robot Schematics ------------------ None Fabricated ------------ Nothing Alien Tech Used ----------------- None Achievements -------------- None Challenges ------------ None Game ------ Seed WeldingImprovedThruster Manual? 0 Play Time 00:16:13 Cumulative 280.2 hours Start 2021.09.19 @ 14:19:50 End 2021.09.19 @ 14:33:22 Sessions 1 Manual Loads 0 Difficulty Rogue Special Mode None Game No. 118 Rogue 16 Adventurer 100 Explorer 2 Win Type - Total 17 Types 14/2/0/0/0/0/0/0/1 Lore% 48 Gallery% 76 Achievement% 53 Wizard Run 0 Options --------- ASCII 0 Keyboard 1 Movement Numpad Keybinds 0 Fullscreen 1 Font 36/TerminusFine Map View 76x50 Tactical HUD 1 Map Filters NONE Filters NONE Steam 1 RUN: c7d730b6-466b-4d1e-83ab-93c4b07aa63c